Cogmind - Beta 11.1 @@@ ROGUE MODE // 2022.05.15 @ 14:50:16 Player: ktur Result: Self-destructed Performance ------------- Evolutions (3) 1500 Regions Visited (9) 1800 Robots Destroyed (142) 710 Value Destroyed (3236) 3236 Prototype IDs (10) 200 Alien Tech Used (0) 0 Bonus (-909) -909 TOTAL SCORE: 6537 Bonus ------- Follower Combat Kills 14 Friendly Fire -923 Cogmind --------- Core Integrity 133/700 Matter 188/300 Energy 56/100 System Corruption 2% Temperature Cool (0) Movement Hovering (80) Location -7/Waste Parts ------- > --- POWER (1) -------- (None) > --- PROPULSION (4) --- Combat Airjet > --- UTILITY (6) ------ Improved Signal Interpreter Improved Utility Shielding Hacking Suite Hacking Suite System Shield > --- WEAPON (2) ------- (None) > --- INVENTORY (5) ---- Antimatter Reactor Improved Hover Unit High-capacity Storage Unit High-capacity Matter Pod (0) Advanced KE Penetrator Peak State ------------ > --- POWER ------------ Micro Nuclear Core > --- PROPULSION ------- Gravmag System Combat Airjet Combat Airjet Combat Airjet > --- UTILITY ---------- Large Storage Unit Improved Signal Interpreter Improved Utility Shielding Hacking Suite Hacking Suite System Shield > --- WEAPON ----------- Molecular Scythe Molecular Scythe > --- INVENTORY -------- Gravmag System High-capacity Storage Unit High-capacity Matter Pod Improved Sensor Array Improved Propulsion Shielding Hacking Suite Authchip [Propulsion] Authchip [Device] Advanced KE Penetrator Advanced KE Penetrator Advanced KE Penetrator Advanced KE Penetrator Missile Launcher Improved Datajack [Rating: 61] Favorites ----------- Power Improved Ion Engine Engine Improved Ion Engine Power Core Micro Nuclear Core Reactor Antimatter Reactor Propulsion Light Treads Treads Light Treads Leg Aluminum Leg Wheel Wheel Hover Unit Combat Airjet Utility High-capacity Storage Unit Device Heat Sink Storage High-capacity Storage Unit Processor Salvage Targeting Computer Hackware Hacking Suite Protection Hardened Medium Armor Plating Weapon Spread Laser Energy Gun Spread Laser Energy Cannon Plasma Cannon Ballistic Gun Heavy Assault Rifle Ballistic Cannon Gauss Cannon Launcher YI-UF0's Doublenader Slashing Weapon Katana Special Melee Weapon Datajack Build | -11 -10 -10 -9 -9 -9 -8 -8 -7 -7 ------- Run | Scr Mat Min Mat Min Exi Min Mat Fac Was Slots Evolved 6 | . . . 2 . . . 2 2 . Power . | . . . . . . . . . . Propulsion 2 | . . . 1 . . . 1 . . Utility 4 | . . . 1 . . . 1 2 . Weapon . | . . . . . . . . . . Parts Attached 171 | 6 4 2 40 14 3 9 36 52 5 Power 13 | 1 . . 5 1 1 1 1 2 1 Engine 10 | 1 . . 5 1 1 1 1 . . Core 2 | . . . . . . . . 2 . Reactor 1 | . . . . . . . . . 1 Propulsion 45 | 2 . 1 13 3 . 3 15 8 . Treads 21 | 2 . 1 13 2 . 1 2 . . Leg 9 | . . . . 1 . 1 7 . . Wheel 1 | . . . . . . 1 . . . Hover 14 | . . . . . . . 6 8 . Flight . | . . . . . . . . . . Utility 48 | 1 3 1 10 2 . 1 7 23 . Device 19 | . 1 1 5 . . . 1 11 . Storage 6 | 1 2 . 1 . . . 1 1 . Processor 6 | . . . 2 . . . 2 2 . Hackware 4 | . . . . . . . . 4 . Protection 13 | . . . 2 2 . 1 3 5 . Artifact . | . . . . . . . . . . Weapon 65 | 2 1 . 12 8 2 4 13 19 4 Energy Gun 15 | . 1 . 5 1 1 1 5 1 . Energy Cannon 3 | . . . 1 . . . . 2 . Ballistic Gun 20 | 2 . . 5 3 1 1 1 3 4 Ballistic Cannon 3 | . . . . . . . 2 1 . Launcher 10 | . . . . 4 . 2 2 2 . Special Weapon . | . . . . . . . . . . Impact Weapon . | . . . . . . . . . . Slashing Weapon 12 | . . . . . . . 3 9 . Piercing Weapon . | . . . . . . . . . . Special Melee Weapon 2 | . . . 1 . . . . 1 . Unidentified Prototypes 10 | . . . 2 1 . . 3 4 . Parts Lost 38 | . . . . 4 . 7 16 8 3 Power 4 | . . . . 1 . . 1 2 . Propulsion 18 | . . . . 2 . 4 8 4 . Utility 3 | . . . . . . 1 1 . 1 Weapon 13 | . . . . 1 . 2 6 2 2 Highest Loss Streak 5 | . . . . 2 . 4 5 3 3 To Critical Strikes . | . . . . . . . . . . Average Slot Usage (%) 92 | . 99 100 99 94 77 81 83 92 81 Engine 9 | . 14 14 11 10 11 11 5 . . Treads 18 | . 28 28 33 27 22 9 . . . Leg 3 | . . . . 1 11 5 16 . . Hover 5 | . . . . . . . 8 29 21 Device 5 | . 13 14 7 . . . . 5 . Storage 11 | . 14 14 11 11 11 11 12 7 7 Processor 7 | . . . 6 14 11 11 11 7 7 Hackware 3 | . . . . . . . . 22 23 Protection 6 | . . . 7 7 11 10 9 1 7 Energy Gun 6 | . 1 14 12 4 . 4 4 . . Ballistic Gun 10 | . 26 14 8 16 . 10 9 . 12 Slashing Weapon 1 | . . . . . . . 1 7 . Naked Turns . | . . . . . . . . . . Heaviest Build 90 | 14 90 51 63 61 54 64 64 37 34 Greatest Support 60 | 40 40 40 60 60 40 60 43 45 36 Greatest Overweight (x) 16 | . 2 1 1 1 1 6 16 1 . Average Overweight (x) . | . . 1 . . 1 3 1 . . Largest Inventory Capacity 25 | 8 25 20 20 20 20 20 20 20 15 Average Capacity 19 | 6 19 20 20 20 20 20 20 15 14 Most Carried 20 | 6 20 20 20 20 20 20 20 19 15 Average Carried 18 | 3 17 19 19 19 19 18 19 14 14 Final Capacity 20 | 8 20 20 20 20 20 20 20 15 5 Final Carried 20 | 6 20 20 20 20 18 18 20 15 5 Class Distribution -------------------- 56% | Mutant 36% | Scavenger-Mutant 7% | Hacker-Mutant Dominant Class ---------------- Mutant | -10/Materials Mutant | -10/Mines Mutant | -9/Materials Mutant | -9/Mines Mutant | -9/Exiles Scavenger-Mutant | -8/Mines Scavenger-Mutant | -8/Materials Hacker-Mutant | -7/Factory Hacker-Mutant | -7/Waste Resources | -11 -10 -10 -9 -9 -9 -8 -8 -7 -7 ----------- Run | Scr Mat Min Mat Min Exi Min Mat Fac Was Matter Collected 4444 | 242 340 198 696 785 . 454 930 599 200 Remotely . | . . . . . . . . . . Salvage Created 5017 | . 474 32 1240 474 . 456 1540 556 245 Parts 282 | . 35 6 79 26 . 26 72 32 6 Haulers Intercepted 12 | . 2 . 6 . . . 3 1 . Recyclers Shooed 12 | . . . 1 2 . 1 7 1 . Parts Field Recycled . | . . . . . . . . . . Retrieved Matter . | . . . . . . . . . . Parts Self-Destructed . | . . . . . . . . . . Prevented . | . . . . . . . . . . Kills | -11 -10 -10 -9 -9 -9 -8 -8 -7 -7 ------- Run | Scr Mat Min Mat Min Exi Min Mat Fac Was Combat Hostiles Destroyed 112 | . 13 3 23 25 . 19 21 7 1 Melee 5 | . . . . . . . 2 3 . Guns 79 | . 13 3 23 15 . 9 15 . 1 Cannons 3 | . . . . . . . 2 1 . AOE 24 | . . . . 10 . 10 1 3 . Classes Destroyed 18 | . 6 . 2 4 . 2 1 2 1 Worker 7 | . 1 . 2 . . 1 2 1 . Builder 3 | . . . . 1 . . 2 . . Tunneler 2 | . . . . 1 . 1 . . . Hauler 12 | . 2 . 6 . . . 3 1 . Recycler 11 | . 1 . 1 1 . . 4 4 . Operator 5 | . 2 . 2 . . . 1 . . Watcher 7 | . . . 5 . . . 2 . . Swarmer 36 | . 8 3 4 6 . 12 3 . . Cutter 3 | . . . . . . . . 3 . Grunt 36 | . 5 . 11 . . 5 13 2 . Brawler 1 | . . . . . . 1 . . . Duelist 2 | . . . . . . . 2 . . Sentry 11 | . . . 8 . . . 3 . . Demolisher 1 | . . . . 1 . . . . . Hunter 1 | . . . . . . 1 . . . Programmer 2 | . . . . . . . . 2 . Compactor 1 | . . . . . . . . . 1 Assembled 18 | . . . . 18 . . . . . Best Kill Streak 8 | . 4 3 5 5 . 8 4 4 1 Combat Bots Only 7 | . 4 3 4 5 . 7 3 3 1 Max Kills in Single Turn 3 | . 2 1 2 2 . 3 2 3 1 Gunslinging 1 | . 1 . . . . . . . . Exploded 3 | . . . . 2 . 3 1 2 . Melee 1 | . . . . . . . 1 1 . Uniques/NPCs Destroyed 1 | . . . . 1 . . . . . YI-UF0 (-9/Mines) Combat | -11 -10 -10 -9 -9 -9 -8 -8 -7 -7 -------- Run | Scr Mat Min Mat Min Exi Min Mat Fac Was Damage Taken 7033 | . 406 55 665 841 . 924 2364 1658 120 Core 1339 | . 84 16 59 135 . 123 355 491 76 Absorbed by Shields . | . . . . . . . . . . Redirected to Shielding 77 | . . . . . . . . 48 29 Regen/Repaired (Parts) 243 | . . . . . . . 119 124 . Core Remaining (%) 53 | 100 . 60 . . . 20 35 . . Volleys Fired 449 | . 46 4 77 67 . 44 150 40 21 Largest 2 | . 2 2 2 2 . 2 2 1 2 Hottest 130 | . 85 85 130 88 . 88 126 80 70 Shots Fired 727 | . 92 8 149 120 . 71 208 40 39 Gun 651 | . 92 8 149 108 . 65 181 9 39 Cannon 53 | . . . . . . . 25 28 . Launcher 23 | . . . . 12 . 6 2 3 . Special . | . . . . . . . . . . Kinetic 533 | . 87 4 63 102 . 40 167 31 39 Thermal 171 | . 5 4 86 6 . 25 39 6 . Explosive 23 | . . . . 12 . 6 2 3 . Electromagnetic . | . . . . . . . . . . Robot Hit Streak 17 | . 8 3 17 8 . 16 12 4 8 Robot Miss Streak 9 | . 5 4 9 9 . 5 5 3 2 Penetration Max 1 | . . . . . . . 1 . 1 Secondary Targets 6 | . 3 . 1 2 . . . . . Max Gunslinging Chain 1 | . 1 . 1 1 . . . . . Shots Hit Robots 509 | . 61 6 121 65 . 57 144 26 29 Core Hits 354 | . 30 6 124 59 . 48 71 13 3 Critical Kills 9 | . . . 3 2 . . 3 . 1 Critical Parts Destroyed 10 | . . . . . . 1 7 . 2 Critical Strikes 29 | . . . 3 2 . 2 12 2 8 Burn 2 | . . . . . . 1 1 . . Destroy 25 | . . . 3 2 . 1 11 . 8 Sever 2 | . . . . . . . . 2 . Melee Attacks 70 | . . . . . . . 13 57 . Impact . | . . . . . . . . . . Slashing 69 | . . . . . . . 13 56 . Piercing . | . . . . . . . . . . Sneak Attacks 10 | . . . . . . . 2 8 . Combat Hostiles . | . . . . . . . . . . Follow-up Attacks 1 | . . . . . . . . 1 . Damage Inflicted 10984 | . 767 71 1834 1563 . 1310 2874 1695 870 Guns 7055 | . 763 63 1813 930 . 773 1843 . 870 Cannons 639 | . . . . . . . 394 245 . Explosions 1758 | . . . . 610 . 513 300 335 . Melee 1430 | . . . . . . . 315 1115 . Ramming 102 | . 4 8 21 23 . 24 22 . . Kinetic 5496 | . 726 26 666 874 . 397 1817 120 870 Thermal 2198 | . 37 37 1147 56 . 376 420 125 . Explosive 1758 | . . . . 610 . 513 300 335 . Electromagnetic . | . . . . . . . . . . Impact . | . . . . . . . . . . Slashing 1430 | . . . . . . . 315 1115 . Piercing . | . . . . . . . . . . Highest Corruption 4 | . . . 4 4 4 4 . 2 2 Average Corruption 3 | . . . 3 4 4 4 . 1 2 Corruption Purged 1 | . . . . . . . . 1 . Corruption Blocked 8 | . . . . . . . . 8 . Effects 144 | . . . 42 40 7 44 . 8 3 Message Errors 34 | . . . 11 9 1 10 . 2 1 Matter Fused 38 | . . . 11 9 3 12 . 2 1 Heat Flow Errors 20 | . . . 5 3 2 8 . 2 . Energy Discharges 21 | . . . 5 9 . 6 . 1 . Data Loss (minor) 17 | . . . 7 6 1 3 . . . Data Loss (major) 9 | . . . 1 3 . 3 . 1 1 Misfires 3 | . . . 1 . . 2 . . . Alerts 2 | . . . 1 1 . . . . . Overload Shots . | . . . . . . . . . . Overflow Damage 336 | . . . . 88 . 21 16 211 . Projectiles 6 | . . . . . . . . 6 . Explosions 137 | . . . . 88 . 21 . 28 . Melee 193 | . . . . . . . 16 177 . Knockbacks 7 | . . . 1 . . . 5 1 . Impact 1 | . . . 1 . . . . . . Kinetic 5 | . . . . . . . 4 1 . Secondary 1 | . . . . . . . 1 . . Self-Inflicted Damage 491 | . . . . 120 . 208 53 110 . Shots 17 | . . . . 5 . 7 3 2 . Rammed 14 | . 1 4 3 2 . 3 1 . . Targets Rammed 22 | . 2 4 5 3 . 4 4 . . Kicked 3 | . . . . . . . 3 . . Crushed 5 | . 1 . 2 1 . 1 . . . Highest Temperature 337 | . . . 204 279 225 318 337 295 . Average Temperature 106 | . . . 55 97 102 131 121 76 . Received Heat Transfer 2359 | . 72 . 306 160 . 279 1188 354 . Effects 7 | . . . . . . 2 5 . . Shutdowns 1 | . . . . . . 1 . . . Energy Bleed 2 | . . . . . . . 2 . . Interference 4 | . . . . . . 1 3 . . Siege Activations . | . . . . . . . . . . Robots Corrupted . | . . . . . . . . . . Combat Hostiles . | . . . . . . . . . . Parts Fried . | . . . . . . . . . . Impact Corruptions . | . . . . . . . . . . Robots Melted 1 | . . . . . . . 1 . . Combat Hostiles 1 | . . . . . . . 1 . . Parts Melted 2 | . . . 1 . . . 1 . . Heat Transferred 3565 | . 50 45 1430 70 . 660 1110 200 . Parts Sabotaged . | . . . . . . . . . . Parts Stolen . | . . . . . . . . . . Parts Stripped . | . . . . . . . . . . Power Chain Reactions . | . . . . . . . . . . Missiles Intercepted . | . . . . . . . . . . Alert | -11 -10 -10 -9 -9 -9 -8 -8 -7 -7 ------- Run | Scr Mat Min Mat Min Exi Min Mat Fac Was Peak Influence 412 | . 186 70 412 401 . 315 199 356 85 Initial 111 | . . 54 . 111 . . 12 36 62 Average 127 | . 100 32 141 223 . 132 102 151 74 Maximum Alert Level 2 | . . . 2 2 . 1 . 1 . Low Security (%) 78 | 100 100 100 74 32 . 75 100 74 100 Level 1 20 | . . . 24 66 . 24 . 25 . Level 2 . | . . . 1 . . . . . . Level 3 . | . . . . . . . . . . Level 4 . | . . . . . . . . . . Level 5 . | . . . . . . . . . . High Security . | . . . . . . . . . . Max Security . | . . . . . . . . . . Squads Dispatched 20 | . 3 1 3 . . . 3 10 . Investigation 7 | . 1 1 1 . . . 1 3 . Extermination 3 | . . . . . . . . 3 . Reinforcement 10 | . 2 . 2 . . . 2 4 . Assault . | . . . . . . . . . . Garrison . | . . . . . . . . . . Intercept . | . . . . . . . . . . Searches Triggered . | . . . . . . . . . . Construction Impeded 1 | . . . . . . . 1 . . Haulers Reinforced . | . . . . . . . . . . Active Scanning Responses . | . . . . . . . . . . Cargo Convoy Interrupts 1 | . . . . . . . . 1 . Stealth | -11 -10 -10 -9 -9 -9 -8 -8 -7 -7 --------- Run | Scr Mat Min Mat Min Exi Min Mat Fac Was Distress Signals 12 | . 1 . 3 . . . 4 4 . Communications Jammed . | . . . . . . . . . . Distress Signals . | . . . . . . . . . . Times Spotted 204 | . 23 3 43 28 . 20 45 37 5 Peak Tracking Total 10 | . 6 2 5 4 . 5 7 10 4 Tactical Retreats 16 | . 1 . 2 3 . 1 2 7 . Traps | -11 -10 -10 -9 -9 -9 -8 -8 -7 -7 ------- Run | Scr Mat Min Mat Min Exi Min Mat Fac Was Traps Triggered 11 | . 1 . 3 . . . 1 6 . Indirectly . | . . . . . . . . . . Trap Hack Attempts 28 | . . . 28 . . . . . . Triggered 1 | . . . 1 . . . . . . Disarmed . | . . . . . . . . . . Reprogrammed 4 | . . . 4 . . . . . . Reused . | . . . . . . . . . . Traps Extracted 4 | . . . 4 . . . . . . Installed . | . . . . . . . . . . Triggered 2 | . . . . . . . . 2 . Most Traps Carried 4 | . . . 4 4 4 4 4 4 . Machines | -11 -10 -10 -9 -9 -9 -8 -8 -7 -7 ---------- Run | Scr Mat Min Mat Min Exi Min Mat Fac Was Machines Disabled 8 | . . . . 1 . 2 1 4 . Max in Single Turn 2 | . . . . . . 2 1 1 . Garrison Access 1 | . . . . . . . . 1 . Machines Sabotaged . | . . . . . . . . . . Garrisons Compromised 1 | . . . . . . . . 1 . Overloaded Fab Kills . | . . . . . . . . . . Hacking | -11 -10 -10 -9 -9 -9 -8 -8 -7 -7 --------- Run | Scr Mat Min Mat Min Exi Min Mat Fac Was Machines Accessed 41 | . 5 3 12 . 1 . 4 16 . Terminals 21 | . 3 1 8 . . . 3 6 . Fabricators 5 | . . . . . . . . 5 . Repair Stations 2 | . . . . . . . 1 1 . Recycling Units 6 | . 2 . 2 . . . . 2 . Scanalyzers 3 | . . . 2 . . . . 1 . Garrison Access 1 | . . . . . . . . 1 . Total Hacks 113 | . 12 5 36 . 1 . 20 39 . Successful 67 | . 7 3 22 . 1 . 10 24 . Failed 46 | . 5 2 14 . . . 10 15 . Catastrophic 5 | . . 1 2 . . . 1 1 . Database Lockouts . | . . . . . . . . . . Manual 62 | . 9 3 26 . . . 8 16 . Terminals 66 | . 10 3 26 . . . 10 17 . Fabricators 12 | . . . . . . . . 12 . Repair Stations 13 | . . . . . . . 10 3 . Recycling Units 6 | . 2 . 2 . . . . 2 . Scanalyzers 12 | . . . 8 . . . . 4 . Garrison Access 1 | . . . . . . . . 1 . Terminal Hacks 27 | . 4 3 10 . 1 . 3 6 . Record 1 | . . . . . 1 . . . . Part Schematic 4 | . 1 1 1 . . . . 1 . Robot Analysis 3 | . 1 . 2 . . . . . . Open Door 2 | . . 2 . . . . . . . Alert Level 7 | . . . 4 . . . 1 2 . Unreport Threat 3 | . . . 1 . . . 1 1 . Locate Traps 1 | . 1 . . . . . . . . Extermination Status 1 | . . . . . . . . 1 . Hauler Manifests 5 | . 1 . 2 . . . 1 1 . Fabricator Hacks 3 | . . . . . . . . 3 . Network Status 1 | . . . . . . . . 1 . Load Schematic 1 | . . . . . . . . 1 . Build 1 | . . . . . . . . 1 . Repair Station Hacks 8 | . . . . . . . 6 2 . Scan Component 4 | . . . . . . . 3 1 . Repair 4 | . . . . . . . 3 1 . Recycling Unit Hacks 6 | . 2 . 2 . . . . 2 . Retrieve Components 6 | . 2 . 2 . . . . 2 . Scanalyzer 12 | . . . 8 . . . . 4 . Insert Component 6 | . . . 4 . . . . 2 . Analyze 6 | . . . 4 . . . . 2 . Garrison Access Hacks 1 | . . . . . . . . 1 . Seal Access 1 | . . . . . . . . 1 . Unauthorized Hacks 10 | . 1 . 2 . . . 1 6 . Terminals 7 | . 1 . 2 . . . 1 3 . Assimilate 1 | . . . . . . . . 1 . Botnet 1 | . . . . . . . . 1 . Disrupt 1 | . . . 1 . . . . . . Operators 4 | . 1 . 1 . . . 1 1 . Fabricators 3 | . . . . . . . . 3 . Haulers 1 | . . . . . . . . 1 . Recompile 2 | . . . . . . . . 2 . Repair Stations . | . . . . . . . . . . Recycling Units . | . . . . . . . . . . Scanalyzers . | . . . . . . . . . . Garrison Access . | . . . . . . . . . . Data Cores Recovered 1 | . . . 1 . . . . . . Used . | . . . . . . . . . . Hacking Detections 31 | . 3 1 11 . . . 4 12 . Full Trace Events 1 | . . . . . . . . 1 . Feedback Events . | . . . . . . . . . . Feedback Blocked . | . . . . . . . . . . Robot Schematics Acquired . | . . . . . . . . . . Robots Built . | . . . . . . . . . . Authchips . | . . . . . . . . . . Time . | . . . . . . . . . . Total Robot Build Rating . | . . . . . . . . . . Part Schematics Acquired 10 | . 1 1 5 . . . . 3 . Parts Built 2 | . . . . . . . . 2 . Authchips . | . . . . . . . . . . Time 84 | . . . . . . . . 84 . Total Part Build Rating 8 | . . . . . . . . 8 . Parts Repaired 4 | . . . . . . . 3 1 . Time 175 | . . . . . . . 150 25 . Parts Recycled . | . . . . . . . . . . Recycled Matter . | . . . . . . . . . . Retrieved Matter . | . . . . . . . . . . Retrieved Components 34 | . 9 . 20 . . . . 5 . Parts Scanalyzed 6 | . . . 4 . . . . 2 . Part Schematics Acquired 6 | . . . 4 . . . . 2 . Parts Damaged . | . . . . . . . . . . Bothacking | -11 -10 -10 -9 -9 -9 -8 -8 -7 -7 ------------ Run | Scr Mat Min Mat Min Exi Min Mat Fac Was Used RIF Installer . | . . . . . . . . . . Robots Hacked 1 | . . . . . . . . 1 . Non-combat 1 | . . . . . . . . 1 . Combat . | . . . . . . . . . . Robot Hacks Applied 1 | . . . . . . . . 1 . find_chute 1 | . . . . . . . . 1 . Relay Couplers Released . | . . . . . . . . . . Fabnet Peak Effective % . | . . . . . . . . . . Robots Rewired . | . . . . . . . . . . Allies Hacked . | . . . . . . . . . . Hacks Repelled . | . . . . . . . . . . Allies | -11 -10 -10 -9 -9 -9 -8 -8 -7 -7 -------- Run | Scr Mat Min Mat Min Exi Min Mat Fac Was Total Allies 2 | . . . . 1 . . . 1 . Largest Group 1 | . . . . 1 . . . 1 . Highest-Rated Group 31 | . . . . 31 . . . 10 . Highest-Rated Ally 31 | . . . . 31 . . . 10 . Total Orders . | . . . . . . . . . . Ally Attacks 9 | . . . . 9 . . . . . Total Damage 128 | . . . . 128 . . . . . Kills 2 | . . . . 2 . . . . . Allies Corrupted . | . . . . . . . . . . Allies Melted . | . . . . . . . . . . Intel | -11 -10 -10 -9 -9 -9 -8 -8 -7 -7 ------- Run | Scr Mat Min Mat Min Exi Min Mat Fac Was Robot Analysis Total 3 | . 1 . 2 . . . . . . Derelict Logs Recovered 3 | . . 2 . 1 . . . . . Drone Launches . | . . . . . . . . . . Drone Recoveries . | . . . . . . . . . . Exploration | -11 -10 -10 -9 -9 -9 -8 -8 -7 -7 ------------- Run | Scr Mat Min Mat Min Exi Min Mat Fac Was Turns Passed 12440 | 96 982 1517 2791 1536 323 1614 1846 1629 106 Spaces Moved 6260 | 57 333 618 1137 636 133 783 712 1807 44 Core 16 | 9 . . . . . . 7 . . Treads 3163 | 48 333 618 1137 636 133 236 22 . . Legs 348 | . . . . . . . 348 . . Wheels 590 | . . . . . . 547 43 . . Hover 2143 | . . . . . . . 292 1807 44 Flight . | . . . . . . . . . . Fastest Speed 50 | 50 160 240 160 160 240 155 63 55 72 Average Speed 161 | 142 234 240 207 201 240 181 186 58 72 Slowest Speed 850 | 160 320 240 240 240 240 400 850 131 76 Overloaded Moves . | . . . . . . . . . . Propulsion Burnouts . | . . . . . . . . . . Robots Hopped . | . . . . . . . . . . Cave-ins Triggered . | . . . . . . . . . . Exploration Rate (%) 61 | 4 61 99 81 99 48 100 41 43 34 Regions Visited 9 Branch Regions 4 Pre-discovered Areas 4 | . . 2 . 1 1 . . . . Known Exits Taken . | . . . . . . . . . . Unknown Exits Taken 8 | 1 1 1 1 1 1 1 1 . . Scrap Searched 3 | . . 1 . 1 . 1 . . . Spaces Dug 59 | . . . . 9 . . 5 45 . Terrain Destroyed 315 | . . . . 106 . 65 32 103 9 Melee 32 | . . . . . . . . 32 . Projectile 42 | . . . . . . . 15 18 9 AOE 241 | . . . . 106 . 65 17 53 . Terrain Rammed . | . . . . . . . . . . Walls Destroyed . | . . . . . . . . . . Machines Disabled . | . . . . . . . . . . Actions | -11 -10 -10 -9 -9 -9 -8 -8 -7 -7 --------- Run | Scr Mat Min Mat Min Exi Min Mat Fac Was Total 7797 | 69 445 643 1435 771 140 904 1047 2265 78 Wait 536 | . 22 2 82 36 . 60 96 233 5 Move 6252 | 56 332 617 1136 635 132 782 711 1807 44 Hop . | . . . . . . . . . . Pick Up 108 | 7 26 6 22 8 . 2 16 20 1 Fast Attach 58 | 5 1 1 6 5 1 2 20 15 2 Attach 45 | 1 . 1 5 2 2 5 12 15 2 Detach 17 | . . . 1 . 2 2 5 6 1 Swap 69 | . 3 . 29 7 . 2 5 22 1 Drop 121 | . 13 8 44 8 3 1 15 28 1 Fire 449 | . 46 4 77 67 . 44 150 40 21 Melee 65 | . . . . . . . 13 52 . Ram 1 | . . . . . . . 1 . . Kick 3 | . . . . . . . 3 . . Crush 18 | . 2 4 5 3 . 4 . . . Escape Stasis 27 | . . . . . . . . 27 . Rewire . | . . . . . . . . . . Trap 28 | . . . 28 . . . . . . Miscellaneous . | . . . . . . . . . . Route ------- -11/Scrapyard -10/Materials (discovered 2 exits: *Mat / *Min) -10/Mines (discovered 2 exits: *Mat x2) -9/Materials (discovered 4 exits: *Mat x2 / [*Min x2]) -9/Mines (discovered 3 exits: *Mat x2 / *Exi) -9/Exiles -8/Mines (discovered 2 exits: *Mat x2) -8/Materials -7/Factory (discovered 2 exits: *Fac / *Low) -7/Waste History --------- Turn | Location | Event 9 | -11/Scrapyard | Discovered new exit (range 13) 97 | -11/Scrapyard | Entered Materials 302 | -10/Materials | Build established: Mutant 600 | -10/Materials | Discovered new exit (range 10) 886 | -10/Materials | Discovered new exit (range 13) 1079 | -10/Materials | Entered Mines 1086 | -10/Mines | Received a Rocket Launcher from a helpful Derelict 1389 | -10/Mines | Discovered new exit (range 8) 1436 | -10/Mines | Found the Drone Emporium 1452 | -10/Mines | Found Prototype Device 1874 | -10/Mines | Learned Materials emergency access door positions 1882 | -10/Mines | Met a Derelict shopkeep closing up shop 1953 | -10/Mines | Learned location of Zion (-6) 2133 | -10/Mines | Discovered new exit (range 7) 2179 | -10/Mines | Learned location of Storage (-7) 2277 | -10/Mines | A weapon hastily lodged in a ceiling crevice suddenly fell to the ground 2596 | -10/Mines | Entered Materials 2596 | -9/Materials | Evolved 2 slots: Propulsion x1, Utility x1 2787 | -9/Materials | Discovered new exit (range 11) 2890 | -9/Materials | Identified Decoy Drone Bay 3228 | -9/Materials | Discovered new exit (range 5) 3954 | -9/Materials | Discovered new exit (range 9) 4718 | -9/Materials | Build established: Scavenger-Mutant 4815 | -9/Materials | Discovered new exit (range 10) 5387 | -9/Materials | Entered Mines 5394 | -9/Mines | Discovered new exit (range 7) 5395 | -9/Mines | Received a Mining Laser from a helpful Derelict 5522 | -9/Mines | Deemed a non-threat by the Exiles lab entrance 5522 | -9/Mines | Discovered new exit (range 5) 5569 | -9/Mines | Destroyed YI-UF0 5575 | -9/Mines | Discovered new exit (range 14) 5577 | -9/Mines | Found Prototype Launcher 5577 | -9/Mines | Identified YI-UF0's Doublenader 5844 | -9/Mines | Assembled infested the area 6419 | -9/Mines | Build established: Mutant 6923 | -9/Mines | Entered Exiles 6990 | -9/Exiles | Met 8R-AWN 7028 | -9/Exiles | Met EX-HEX 7122 | -9/Exiles | Met EX-DEC 7218 | -9/Exiles | Discovered new exit (range 14) 7246 | -9/Exiles | Entered Mines 7413 | -8/Mines | Discovered new exit (range 7) 7422 | -8/Mines | Core integrity fell below 50% 8001 | -8/Mines | Destroyed 7 combat bots 8009 | -8/Mines | Lost 4 parts (2n1u1w) 8285 | -8/Mines | Discovered new exit (range 5) 8436 | -8/Mines | Build established: Scavenger-Mutant 8860 | -8/Mines | Entered Materials 8860 | -8/Materials | Evolved 2 slots: Propulsion x1, Utility x1 9079 | -8/Materials | Repaired Cmb. Airjet 9145 | -8/Materials | Repaired Cmb. Airjet 9201 | -8/Materials | Repaired Cmb. Airjet 9834 | -8/Materials | Lost 3 parts (2n1w) 9886 | -8/Materials | Lost 4 parts (1p2n1w) 10072 | -8/Materials | Lost 5 parts (2n1u2w) 10113 | -8/Materials | Build established: Mutant 10250 | -8/Materials | Core integrity fell below 50% 10306 | -8/Materials | Discovered new exit (range 15) 10706 | -8/Materials | Entered Factory 10706 | -7/Factory | Evolved 2 slots: Utility x2 11012 | -7/Factory | Build established: Scavenger-Mutant 11230 | -7/Factory | Lost 3 parts (1p2n) 11321 | -7/Factory | Discovered new exit (range 5) 11323 | -7/Factory | Identified exit to Factory 11457 | -7/Factory | Build established: Hacker-Mutant 11536 | -7/Factory | Discovered new exit (range 5) 11541 | -7/Factory | Identified exit to Lower Caves 11574 | -7/Factory | Repaired Cmb. Airjet 11654 | -7/Factory | Cargo convoy interrupted 11758 | -7/Factory | Fabricated Greatsword (x2) 11869 | -7/Factory | Found Prototype Slashing Weapon 11869 | -7/Factory | Identified Molecular Scythe 11872 | -7/Factory | Found Molecular Scythe 12309 | -7/Factory | Core integrity fell below 50% 12335 | -7/Factory | Manually triggered Chute Trap 12335 | -7/Factory | Sucked down chute 12335 | -7/Factory | Entered Waste 12348 | -7/Waste | Lost 3 parts (1p1n1w) 12357 | -7/Waste | Spotted C-40 Crusher 12359 | -7/Waste | Spotted C-40 Crusher 12381 | -7/Waste | Destroyed C-40 Crusher 12387 | -7/Waste | Spotted C-40 Crusher 12387 | -7/Waste | Spotted C-40 Crusher 12426 | -7/Waste | Crushed by Compactor (1 part destroyed, 1 dropped) 12429 | -7/Waste | Crushed by Compactor (1 part destroyed, 1 dropped) 12433 | -7/Waste | Spotted C-40 Crusher 12440 | -7/Waste | Crushed by Compactor (1 part destroyed, 2 dropped) 12441 | -7/Waste | Core integrity fell below 20% 12441 | -7/Waste | Self-destructed Last Messages --------------- 12408_ Dropped Hcp. Matter Pod. 12408_ Slug penetrates Wall. 12408_ Slug penetrates C-40 Crusher. 12409_ Extracted 200 matter. 12411_ Slug penetrates Wall. 12414_ Slug penetrates C-40 Crusher. 12414_ C-40 Crusher suffers critical hit (Destroy). 12417_ Slug penetrates C-40 Crusher. 12417_ C-40 Crusher suffers critical hit (Destroy). 12417_ Destroyed Compactor. 12420_ Slug penetrates C-40 Crusher. 12426_ Adv. KE Penetrator crushed. 12426_ Acquired Hcp. Matter Pod. 12428_ Acquired Adv. KE Penetrator. 12429_ Adv. KE Penetrator crushed. 12429_ Cmb. Airjet crushed. 12435_ Slug penetrates C-40 Crusher. 12440_ Lrg. Storage Unit crushed. 12440_ Adv. KE Penetrator crushed. 12440_ Cmb. Airjet crushed. Map ----- +----------------------------------------------------+ | ?????????????????????????????????????????????????? | | ?????????????????????????????????????????????????? | | ?????????????????????????????????????????????????? | | ?????????????????????????????????????????????????? | | ?????????????????????????????????????????????????? | | ?????????????????????????????????????????????????? | | ?????????????????????????????????????????????????? | | ?????????????????????????????????????????????????? | | ?????????????????????????????????????????????????? | | ?????????????????????????????????????????????????? | | ?????????????????????????????????????????????????? | | ?????????????????????????????????????????????????? | | ?????????????????????????????????????????????????? | | ?????????????????????????????????????????????????? | | ?????????????????????????????????????????????????? | | ?????????????????????????????????????????????????? | | ?????????????????????????????????????????????????? | | ?????????????????????????????????????????????????? | | ?????????????????????######??????????????????????? | | ?????????????????????# #??????????????????????? | | ?????????????????????# #??????????????????????? | | ????????????????????## #??????????????????????? | | ????????????????????#; #??????????????????????? | | ???????????????????##; CC#??????????????????????? | | ???????????????????# [CC#??????????????????????? | | ???????????????????# !!@#??????????????????????? | | ???????????????????# !!#??????????????????????? | | ???????????????????# =/#??????????????????????? | | ???????????????????##; #??????????????????????? | | ????????????????????#; #??????????????????????? | | ????????????????????## #??????????????????????? | | ?????????????????????# #????????? ????????????? | | ???????????????????### CC ####"### ???????????? | | ???????????????????# ! CC ???????????? | | ???????????????????# ??????????? | | ???????????????????# ??????????? | | ???????????????????# ??????????? | | ???????????????????### ;""##### ???????????? | | ???????############??# # ##?????? ????????????? | | ???????# #??# ###????????????????????? | | ???????# #??# #??????????????????????? | | ???????# #### #??????????????????????? | | ???????# #??????????????????????? | | ???????# #??????????????????????? | | ???????# #??????????????????????? | | ???????# #??????????????????????? | | ???????# ! #### #??????????????????????? | | ???????# #??# #??????????????????????? | | ???????# #??# ! #??????????????????????? | | ???????############??# #??????????????????????? | +----------------------------------------------------+ Best States ------------- Heat Dissipation 50 Energy Generation 15 Energy Capacity 265 Matter Stores 500 Matter Capacity 500 Sight Range 16 Robot Scan Range 15 Terrain Scan Density 10 ECM Strength 1 Base Temperature (-) 100 Armor Coverage 300 Utility Shielding 66 Evasion (%) 54 Targeting Accuracy 6 Core Analysis 6 Recoil Reduction 3 Salvage Targeting 2 Offensive Hacking 20 Defensive Hacking 10 Authchip Count 2 Trap Extractor Capacity 4 Item Schematics ----------------- Hcp. Storage Unit | -10/Materials | Hacked Structural Scanner | -10/Mines | Hacked Hacking Suite | -9/Materials | Scanalyzed Signal Interpreter | -9/Materials | Hacked System Shield | -9/Materials | Scanalyzed Imp. Utility Shielding | -9/Materials | Scanalyzed Hcp. Matter Pod | -9/Materials | Scanalyzed Cmb. Airjet | -7/Factory | Scanalyzed Imp. Propulsion Shielding | -7/Factory | Scanalyzed Imp. Hacking Suite | -7/Factory | Hacked Robot Schematics ------------------ None Fabricated ------------ Greatsword | x2 | -7/Factory | Preloaded Alien Tech Used ----------------- None Achievements -------------- None Challenges ------------ None Game ------ Seed IonicDroneCoupler Manual? 0 Play Time 01:22:19 Cumulative 410.5 hours Start 2022.05.13 @ 23:56:07 End 2022.05.15 @ 14:50:16 Sessions 9 Manual Loads 0 Difficulty Rogue Special Mode None Game No. 405 Rogue 405 Adventurer 0 Explorer 0 Win Type - Total 21 Types 13/2/3/2/0/0/0/1/0 Lore% 92 Gallery% 90 Achievement% 76 Wizard Run 0 Options --------- ASCII 0 Keyboard 0 Movement Arrows Keybinds 0 Fullscreen 1 Font 18/Smallcaps Map View 76x50 Tactical HUD 1 Map Filters NONE Filters NONE Steam 1 RUN: cc49173d-7f9b-4a79-9505-b3ed6f87bf94